bitfinex-derivatives/quotes_SOLF0:USTF0_20241009
["timestamp","ask_amount","ask_price","bid_price","bid_amount"]
[1728472373121,10.79,142.91,142.9,14.63611118]
[1728472375627,10.79,142.91,142.87,10.79]
[1728472375830,10.79,142.91,142.9,14.63627839]
[1728472378926,10.79,142.91,142.86,1.3847]
[1728472379235,15.67,142.9,142.86,1.3847]
[1728472379428,15.67,142.9,142.87,14.63853327]
[1728472379626,15.67,142.9,142.88,14.63853327]
[1728472379927,15.67,142.9,142.89,14.63853327]
[1728472381318,15.67,142.9,142.86,1.3847]
[1728472381522,15.67,142.9,142.89,14.64457434]
[1728472381930,15.67,142.9,142.89,9.01204575]
[1728472382528,15.67,142.9,142.89,5.63252859]
[1728472383135,15.67,142.9,142.89,14.64432126]
[1728472385032,15.67,142.9,142.86,1.3847]
[1728472385234,15.67,142.9,142.89,9.01343996]
[1728472385426,15.67,142.9,142.89,14.64683994]
[1728472388434,15.67,142.9,142.86,1.3847]
[1728472388830,15.67,142.9,142.87,5.6330197]
[1728472389132,15.67,142.9,142.88,14.64585123]
[1728472389438,15.67,142.9,142.89,14.64585123]
[1728472392343,15.67,142.9,142.86,1.3847]
[1728472392734,15.67,142.9,142.89,9.01166591]
[1728472393041,15.67,142.9,142.89,14.6439571]
[1728472396238,4.88,142.92,142.86,12.1747]
[1728472396439,4.88,142.92,142.89,5.63372563]
[1728472396642,4.88,142.92,142.87,5.63372563]
[1728472396842,10.79,142.91,142.88,14.64741012]
[1728472397039,10.79,142.91,142.89,14.64741012]
[1728472397240,10.79,142.91,142.9,14.64741012]
[1728472400047,10.79,142.91,142.86,1.3847]
[1728472400243,10.79,142.91,142.9,5.63385998]
[1728472400447,10.79,142.91,142.9,9.01417598]
[1728472400641,10.79,142.91,142.9,14.64803596]
[1728472403538,10.79,142.91,142.86,1.3847]
[1728472403744,15.67,142.92,142.9,9.01524494]
[1728472403946,15.67,142.92,142.9,14.64977303]
[1728472404252,15.67,142.92,142.9,5.63452809]
[1728472404451,15.67,142.92,142.91,5.63452809]
[1728472406545,15.67,142.92,142.91,14.64826634]
[1728472407158,15.67,142.92,142.86,12.1747]
[1728472407352,15.67,142.92,142.91,14.6473241]
[1728472407657,15.67,142.92,142.86,12.1747]
[1728472407956,15.67,142.92,142.91,14.6475238]
[1728472408453,15.67,142.92,142.91,5.633663]
[1728472410452,15.67,142.92,142.86,12.1747]
[1728472410654,15.67,142.92,142.91,5.634144]
[1728472411356,15.67,142.92,142.91,14.64836801]
[1728472413759,15.67,142.92,142.86,12.1747]
[1728472414060,15.67,142.92,142.91,14.64807757]
[1728472415160,15.67,142.92,142.91,5.63387599]
[1728472415357,15.67,142.92,142.91,14.65049827]
[1728472416769,15.67,142.92,142.91,5.63387599]
[1728472417068,15.67,142.92,142.86,1.3847]
[1728472417459,15.67,142.92,142.87,14.65282424]
[1728472417661,15.67,142.92,142.86,1.3847]
[1728472417867,15.67,142.92,142.87,9.01734216]
[1728472418275,15.67,142.92,142.88,14.65318101]
[1728472418573,15.67,142.92,142.89,14.65318101]
[1728472418761,15.67,142.92,142.9,14.65318101]
[1728472418960,15.67,142.92,142.86,1.3847]
[1728472418961,15.67,142.92,142.91,5.63583885]
[1728472420872,15.67,142.92,142.86,1.3847]
[1728472421172,15.67,142.92,142.87,14.66524166]
[1728472421173,10.79,142.89,142.87,14.66524166]
[1728472421368,15.65,142.89,142.88,14.66524166]
[1728472423366,15.65,142.89,142.88,5.64047756]
[1728472430183,15.65,142.89,142.85,12.24132]
[1728472430575,15.65,142.89,142.86,14.64521919]
[1728472430778,15.65,142.89,142.87,14.64521919]
[1728472430980,15.65,142.89,142.88,5.63277661]
[1728472435284,10.79,142.89,142.88,5.63277661]
[1728472435488,15.67,142.89,142.88,5.63277661]
[1728472437094,15.67,142.89,142.85,12.24132]
[1728472437488,15.67,142.89,142.86,14.64240805]
[1728472437684,4.88,142.89,142.87,14.64240805]
[1728472437889,4.88,142.89,142.85,0.12502]
[1728472437890,1.24744421,142.88,142.85,0.12502]
[1728472438287,10.79,142.86,142.85,0.12502]
[1728472438489,15.67,142.86,142.85,0.12502]
[1728472453002,2.756,142.92,142.85,0.12502]
[1728472453300,10.79,142.88,142.85,0.12502]
[1728472453501,15.65,142.88,142.85,0.12502]
[1728472454422,15.65,142.88,142.86,5.62443461]
[1728472454701,4.86,142.88,142.85,0.12502]
[1728472454907,15.65,142.88,142.86,5.62407506]
[1728472455098,15.65,142.88,142.85,0.12502]
[1728472455297,15.65,142.88,142.86,5.62428406]
[1728472455501,15.65,142.88,142.85,0.12502]
[1728472455703,15.65,142.88,142.86,5.62417979]
[1728472455905,15.65,142.88,142.85,0.12502]
[1728472456100,15.65,142.88,142.86,5.62379565]
[1728472456311,15.65,142.88,142.85,0.12502]
[1728472456902,15.65,142.88,142.86,5.6242109]
[1728472457114,15.65,142.88,142.85,0.12502]
[1728472457297,15.65,142.88,142.86,5.62444588]
[1728472457502,15.65,142.88,142.85,0.12502]
[1728472457707,15.65,142.88,142.86,5.62444542]
[1728472457906,15.65,142.88,142.85,0.12502]
[1728472458204,15.65,142.88,142.86,5.62444542]
[1728472458406,15.65,142.88,142.85,0.12502]
[1728472458607,15.65,142.88,142.86,5.62454704]
[1728472458805,15.65,142.88,142.85,0.12502]
[1728472459003,15.65,142.88,142.86,5.62456194]
[1728472459205,15.65,142.88,142.85,0.12502]
[1728472459410,15.65,142.88,142.86,5.62467366]
[1728472459606,15.65,142.88,142.85,0.12502]
[1728472460007,15.65,142.88,142.86,5.62442003]
[1728472460210,15.65,142.88,142.85,0.12502]
[1728472460407,15.65,142.88,142.86,5.62386981]
[1728472460606,15.65,142.88,142.85,0.12502]
[1728472460816,15.65,142.88,142.86,5.62390146]
[1728472461112,15.65,142.88,142.85,0.12502]
[1728472461311,15.65,142.88,142.86,5.62387418]
[1728472461510,15.65,142.88,142.85,0.12502]
[1728472461709,70.00471019,142.89,142.86,5.62381035]
[1728472462012,70.00471019,142.89,142.87,5.62282063]
[1728472462214,74.86471019,142.89,142.86,1.339]
[1728472462416,74.86471019,142.89,142.87,5.62224516]
[1728472462609,74.86471019,142.89,142.86,1.339]
[1728472462809,74.86471019,142.89,142.87,5.62221206]
[1728472463011,74.86471019,142.89,142.86,1.339]
[1728472463616,74.86471019,142.89,142.87,5.62229645]
[1728472465717,74.86471019,142.89,142.88,5.62254321]
[1728472466507,74.86471019,142.89,142.87,5.62229645]
[1728472466709,74.86471019,142.89,142.88,5.62285038]
[1728472467920,74.86471019,142.89,142.88,5.62262393]
[1728472468112,85.65471019,142.89,142.88,5.62262393]
[1728472468311,85.65471019,142.89,142.86,1.339]
[1728472468510,85.65471019,142.89,142.87,5.62351502]
[1728472468709,85.65471019,142.89,142.86,1.339]
[1728472469011,10.79,142.87,142.86,1.339]
[1728472469206,10.79,142.87,142.86,15.96121987]
[1728472469815,10.79,142.87,142.86,6.96293072]
[1728472470109,10.79,142.87,142.86,15.96175301]
[1728472471917,10.79,142.88,142.86,15.96175301]
[1728472472216,10.79,142.88,142.87,5.62413577]
[1728472473225,10.79,142.88,142.86,1.339]
[1728472473403,10.79,142.88,142.87,5.62519601]
[1728472479912,15.65,142.89,142.87,5.62519601]
[1728472480212,15.65,142.89,142.86,1.339]
[1728472480620,15.65,142.89,142.87,5.6277807]
[1728472480818,15.65,142.89,142.86,1.339]
[1728472481016,15.65,142.89,142.87,5.6277807]
[1728472481219,15.65,142.89,142.86,1.339]
[1728472481515,15.65,142.89,142.87,5.62824019]
[1728472481718,15.65,142.89,142.86,1.339]
[1728472481924,15.65,142.89,142.87,5.62824276]
[1728472482129,15.65,142.89,142.88,5.62861744]
[1728472485733,15.65,142.89,142.86,1.339]
[1728472486135,15.65,142.89,142.87,9.00719548]
[1728472486331,15.65,142.89,142.88,5.62949717]
[1728472490139,4.86,142.89,142.88,5.62949717]
[1728472490338,4.86,142.89,142.86,1.339]
[1728472490639,4.86,142.89,142.87,14.64165497]
[1728472491045,4.86,142.89,142.88,14.64165497]
[1728472493639,4.86,142.89,142.88,5.63140576]
[1728472493846,4.86,142.89,142.86,1.339]
[1728472494044,4.86,142.89,142.88,5.62976716]
[1728472497238,4.86,142.89,142.88,5.62916003]
[1728472497643,4.86,142.89,142.86,1.339]
[1728472497844,4.86,142.89,142.88,5.6291673]
[1728472499649,15.65,142.89,142.88,5.6291673]
[1728472499949,4.86,142.89,142.88,5.6291673]
[1728472509458,4.86,142.89,142.88,5.63167379]
[1728472512663,4.86,142.89,142.86,1.339]
[1728472513069,4.86,142.89,142.87,14.6475353]
[1728472513254,4.86,142.89,142.88,5.63366742]
[1728472513560,4.86,142.89,142.88,14.647714]
[1728472517168,4.86,142.92,142.88,25.437714]
[1728472517365,4.86,142.92,142.9,10.79]
[1728472517664,4.86,142.92,142.91,14.647714]
[1728472522561,4.86,142.93,142.91,25.437714]
[1728472522761,4.86,142.93,142.92,14.647714]
[1728472525367,4.86,142.93,142.91,10.79]
[1728472525770,4.86,142.93,142.92,14.63974908]
[1728472525969,4.86,142.93,142.92,5.63067272]
[1728472526278,4.86,142.93,142.92,20.27021855]
[1728472527877,4.86,142.93,142.92,5.63067272]
[1728472528063,4.86,142.93,142.92,20.26911439]
[1728472528573,4.86,142.93,142.92,14.63844167]
[1728472529373,10.79,142.95,142.92,25.42844167]
[1728472529374,4.86,142.95,142.92,25.42844167]
[1728472529581,4.86,142.96,142.93,25.42844167]
[1728472529876,4.86,142.96,142.94,14.63844167]
[1728472530073,4.86,142.96,142.95,5.63016987]
[1728472530779,4.98502,142.97,142.95,5.63016987]
[1728472530979,4.98502,142.97,142.96,5.63016987]
[1728472531475,4.98502,142.97,142.94,10.79]
[1728472531677,4.98502,142.97,142.95,5.6222242]
[1728472531882,4.98502,142.97,142.94,10.79]
[1728472532271,4.98502,142.97,142.95,5.62219161]
[1728472532471,4.98502,142.97,142.94,10.79]
[1728472532673,0.12502,142.97,142.95,5.6204308]
[1728472532873,0.12502,142.97,142.94,10.79]
[1728472533171,0.12502,142.97,142.95,5.6204308]
[1728472533466,0.12502,142.97,142.94,10.79]
[1728472533672,0.12502,142.97,142.95,5.61892113]
[1728472533866,0.12502,142.97,142.94,10.79]
[1728472534071,0.12502,142.97,142.95,5.6188676]
[1728472534272,0.12502,142.97,142.94,10.79]
[1728472534566,0.12502,142.97,142.95,5.61745202]
[1728472534770,0.12502,142.97,142.94,10.79]
[1728472534969,0.12502,142.97,142.95,5.61745272]
[1728472535277,0.12502,142.97,142.94,10.79]
[1728472537775,0.12502,142.97,142.95,5.61266209]
[1728472537970,0.12502,142.97,142.94,10.79]
[1728472538578,0.12502,142.97,142.95,5.61253685]
[1728472539181,0.12502,142.97,142.94,10.79]
[1728472540077,0.12502,142.97,142.95,5.61002317]
[1728472540277,0.12502,142.97,142.94,10.79]
[1728472541481,0.12502,142.97,142.95,5.60850996]
[1728472541681,0.12502,142.97,142.94,10.79]
[1728472542974,0.12502,142.97,142.95,5.60625093]
[1728472543175,0.12502,142.97,142.94,10.79]
[1728472553485,0.12502,142.97,142.92,1.3832]
[1728472553786,0.12502,142.97,142.93,16.39001127]
[1728472554085,0.12502,142.97,142.94,5.60001127]
[1728472554286,0.12502,142.97,142.93,10.79]
[1728472554478,0.12502,142.97,142.94,5.59983326]
[1728472554679,0.12502,142.97,142.93,10.79]
[1728472554886,0.12502,142.97,142.94,5.5998333]
[1728472555189,0.12502,142.97,142.93,10.79]
[1728472555378,0.12502,142.97,142.94,5.59972077]
[1728472555686,0.12502,142.97,142.93,10.79]
[1728472556084,0.12502,142.97,142.94,5.59968484]
[1728472556292,0.12502,142.97,142.93,10.79]
[1728472556583,0.12502,142.97,142.94,5.59965153]
[1728472556786,0.12502,142.97,142.93,10.79]
[1728472556976,0.12502,142.97,142.94,5.59929891]
[1728472557177,0.12502,142.97,142.93,10.79]
[1728472557487,0.12502,142.97,142.94,5.5992183]
[1728472557685,0.12502,142.97,142.93,10.79]
[1728472557984,0.12502,142.97,142.94,5.59918987]
[1728472558187,0.12502,142.97,142.93,10.79]
[1728472558486,0.12502,142.97,142.94,5.59921134]
[1728472558679,0.12502,142.97,142.93,10.79]
[1728472558881,0.12502,142.97,142.94,5.59922554]
[1728472559080,0.12502,142.97,142.93,10.79]
[1728472559279,0.12502,142.97,142.94,5.5994218]
[1728472559583,0.12502,142.97,142.93,10.79]
[1728472559983,0.12502,142.97,142.94,5.59885462]
[1728472560190,0.12502,142.97,142.93,10.79]
[1728472560483,10.91502,142.97,142.94,5.59925403]
[1728472560692,10.91502,142.97,142.92,12.1732]
[1728472560894,10.91502,142.97,142.93,5.59952042]
[1728472561193,10.91502,142.97,142.94,5.59952042]
[1728472561385,10.91502,142.97,142.92,12.1732]
[1728472561583,10.91502,142.97,142.93,5.59952578]
[1728472561783,10.91502,142.97,142.94,5.59952578]
[1728472561984,10.91502,142.97,142.92,1.3832]
[1728472562283,10.79,142.95,142.91,2.7948]
[1728472562587,10.79,142.95,142.92,5.60174028]
[1728472562780,10.79,142.95,142.91,13.5848]
[1728472563086,10.79,142.95,142.92,5.60220575]
[1728472563291,10.79,142.95,142.91,13.5848]
[1728472563491,10.79,142.95,142.92,5.60249705]
[1728472563789,10.79,142.95,142.91,13.5848]
[1728472563990,10.79,142.95,142.92,5.60252898]
[1728472564193,10.79,142.95,142.91,13.5848]
[1728472564396,10.79,142.95,142.92,5.60308855]
[1728472564588,10.79,142.95,142.91,13.5848]
[1728472564788,10.79,142.95,142.92,5.60310268]
[1728472565090,10.79,142.95,142.91,13.5848]
[1728472565485,10.79,142.95,142.92,5.601723]
[1728472565686,10.79,142.95,142.91,13.5848]
[1728472565883,10.79,142.95,142.92,5.60204238]
[1728472566090,10.79,142.95,142.91,13.5848]
[1728472566291,10.79,142.95,142.92,5.60577847]
[1728472566485,10.79,142.95,142.91,13.5848]
[1728472566791,10.79,142.95,142.92,5.60621601]
[1728472566990,10.79,142.95,142.91,13.5848]
[1728472567185,10.79,142.95,142.92,5.6066994]
[1728472567390,10.79,142.95,142.91,13.5848]
[1728472567691,10.79,142.95,142.92,5.60690014]
[1728472567887,10.79,142.95,142.91,13.5848]
[1728472568094,4.86,142.96,142.92,5.60691014]
[1728472568393,15.65,142.96,142.91,13.5848]
[1728472568592,15.65,142.96,142.92,5.60716991]
[1728472568795,15.65,142.96,142.91,13.5848]
[1728472569495,15.65,142.96,142.92,5.60718623]
[1728472569695,15.65,142.96,142.91,13.5848]
[1728472569892,15.65,142.96,142.92,5.60773495]
[1728472570197,15.65,142.96,142.91,13.5848]
[1728472570395,15.65,142.96,142.92,5.60929918]
[1728472570590,15.65,142.96,142.91,13.5848]
[1728472570790,15.65,142.96,142.92,5.60921349]
[1728472571095,15.65,142.96,142.91,13.5848]
[1728472571297,15.65,142.96,142.92,5.60936311]
[1728472571494,15.65,142.96,142.91,13.5848]
[1728472571691,15.65,142.96,142.92,5.61042128]
[1728472571892,15.65,142.96,142.91,13.5848]
[1728472572092,15.65,142.96,142.92,5.61042128]
[1728472572285,15.65,142.96,142.93,5.61042128]
[1728472572487,15.65,142.96,142.91,13.5848]
[1728472572693,15.65,142.96,142.92,5.61126963]
[1728472572894,15.65,142.96,142.93,5.61126963]
[1728472573093,10.79,142.94,142.91,1.4409]
[1728472573294,10.79,142.94,142.92,5.61367859]
[1728472573491,10.79,142.94,142.91,1.4409]
[1728472573700,4.86,142.93,142.91,1.4409]
[1728472576413,4.86,142.93,142.92,5.61702332]
[1728472576708,4.86,142.93,142.9,71.89692347]
[1728472576914,4.86,142.93,142.91,5.61754871]
[1728472577209,4.86,142.93,142.9,71.89692347]
[1728472577410,4.86,142.93,142.91,5.61865007]
[1728472577598,4.86,142.93,142.92,5.61865007]
[1728472579009,4.86,142.93,142.9,71.89692347]
[1728472579312,4.86,142.93,142.91,5.62167957]
[1728472579813,4.86,142.93,142.9,71.89692347]
[1728472580014,4.86,142.93,142.91,5.62270233]
[1728472580205,4.86,142.93,142.89,10.79]
[1728472580401,4.86,142.93,142.9,14.62214759]
[1728472580609,4.86,142.93,142.91,5.62390292]
[1728472580806,4.86,142.93,142.89,10.79]
[1728472581009,4.86,142.93,142.9,8.99814031]
[1728472581216,4.86,142.93,142.91,5.62383769]
[1728472581419,4.86,142.93,142.89,10.79]
[1728472581717,4.86,142.93,142.9,14.62225989]
[1728472581915,4.86,142.93,142.91,5.62394611]
[1728472582214,4.86,142.93,142.89,10.79]
[1728472582418,4.86,142.93,142.9,14.62504423]
[1728472582718,4.86,142.93,142.91,5.62501701]
[1728472582912,4.86,142.93,142.89,10.79]
[1728472583419,4.86,142.93,142.9,8.99745605]
[1728472583616,4.86,142.93,142.9,5.62341003]
[1728472584120,4.86,142.93,142.91,5.62341003]
[1728472584317,4.86,142.93,142.92,5.62341003]
[1728472586517,4.86,142.93,142.9,10.79]
[1728472586722,4.86,142.93,142.92,5.6249165]
[1728472587118,4.86,142.94,142.92,5.6249165]
[1728472587325,4.86,142.94,142.9,10.79]
[1728472587522,4.86,142.94,142.91,14.62465189]
[1728472587819,4.86,142.94,142.92,5.62486611]
[1728472588019,4.86,142.94,142.9,10.79]
[1728472588321,4.86,142.94,142.88,1.3875]
[1728472588322,4.86,142.94,142.91,14.62632325]
[1728472588722,4.86,142.94,142.92,5.62550894]
[1728472589024,4.86,142.94,142.89,10.79]
[1728472589217,4.86,142.94,142.9,14.62779896]
[1728472589418,4.86,142.94,142.91,5.62607652]
[1728472589617,4.86,142.94,142.89,10.79]
[1728472589821,4.86,142.94,142.9,14.62766944]
[1728472590120,4.86,142.94,142.91,5.62602671]
[1728472590518,4.86,142.94,142.92,5.62602671]
[1728472590721,4.86,142.94,142.89,10.79]
[1728472591024,4.86,142.94,142.9,14.62586037]
[1728472591222,4.86,142.94,142.91,14.62586037]
[1728472591425,4.86,142.94,142.92,5.62533091]
[1728472591725,4.86,142.94,142.89,10.79]
[1728472591926,4.86,142.94,142.9,14.6262071]
[1728472592127,4.86,142.94,142.91,14.6262071]
[1728472592424,4.86,142.94,142.92,5.62546427]
[1728472592614,4.86,142.94,142.93,5.62510111]
[1728472600330,4.86,142.94,142.9,10.79]
[1728472600936,4.86,142.94,142.91,14.61860914]
[1728472601130,4.86,142.94,142.92,8.99606716]
[1728472601429,4.86,142.94,142.93,5.62254198]
[1728472602223,4.86,142.94,142.89,10.79]
[1728472602525,4.86,142.94,142.9,14.61990146]
[1728472602733,4.86,142.94,142.91,14.61990146]
[1728472602929,4.86,142.94,142.92,5.62303902]
[1728472603120,4.86,142.94,142.89,10.79]
[1728472603320,4.86,142.94,142.9,14.61952002]
[1728472603530,4.86,142.94,142.91,14.61952002]
[1728472603728,4.86,142.94,142.92,5.62289231]
[1728472603933,4.86,142.94,142.89,10.79]
[1728472604727,4.86,142.94,142.9,5.62274762]
[1728472604933,4.86,142.94,142.9,14.61914381]
[1728472605521,4.86,142.94,142.91,14.61914381]
[1728472605720,4.86,142.94,142.92,5.62274762]
[1728472605932,4.86,142.94,142.89,10.79]
[1728472606126,4.86,142.94,142.9,14.61852902]
[1728472606323,4.86,142.94,142.91,14.61852902]
[1728472606529,4.86,142.94,142.92,5.62251116]
[1728472606721,4.86,142.94,142.89,10.79]
[1728472606926,4.86,142.94,142.9,14.61848089]
[1728472607127,4.86,142.94,142.91,14.61848089]
[1728472607326,4.86,142.94,142.92,5.62249265]
[1728472607526,4.86,142.94,142.89,10.79]
[1728472608032,4.86,142.94,142.9,14.62027656]
[1728472608337,4.86,142.94,142.91,14.62027656]
[1728472608535,4.86,142.94,142.92,5.62318329]
[1728472608741,4.86,142.94,142.88,1.3875]
[1728472609040,4.86,142.94,142.89,25.41129835]
[1728472609231,4.86,142.94,142.9,14.62129835]
[1728472609538,4.86,142.94,142.91,14.62129835]
[1728472609746,4.86,142.94,142.92,5.62357629]
[1728472610035,4.86,142.94,142.89,10.79]
[1728472610236,4.86,142.94,142.9,14.62086252]
[1728472610435,4.86,142.94,142.91,14.62086252]
[1728472610639,4.86,142.94,142.92,5.62340866]
[1728472610841,4.86,142.94,142.89,10.79]
[1728472611135,4.86,142.94,142.9,14.62110698]
[1728472611341,4.86,142.94,142.89,10.79]
[1728472611539,4.86,142.94,142.91,14.62151065]
[1728472611837,4.86,142.94,142.92,5.62365794]
[1728472612028,4.86,142.94,142.89,10.79]
[1728472612227,4.86,142.94,142.9,14.62166547]
[1728472612432,4.86,142.94,142.91,14.62166547]
[1728472612634,4.86,142.94,142.92,5.62371749]
[1728472612833,4.86,142.94,142.89,10.79]
[1728472613139,4.86,142.94,142.9,14.62225128]
[1728472613338,4.86,142.94,142.91,14.62225128]
[1728472613538,4.86,142.94,142.92,5.6239428]
[1728472613843,15.65,142.94,142.89,10.79]
[1728472614026,15.65,142.94,142.9,14.62407347]
[1728472614230,15.65,142.94,142.91,5.62464364]
[1728472614426,15.65,142.94,142.92,5.62464364]
[1728472614730,15.65,142.94,142.88,1.3875]
[1728472614939,3.52170944,142.93,142.89,10.79]
[1728472615334,74.83890536,142.94,142.9,5.62566781]
[1728472615538,74.83890536,142.94,142.89,10.79]
[1728472615735,74.83890536,142.94,142.9,5.62524176]
[1728472616032,74.83890536,142.94,142.89,10.79]
[1728472616239,74.83890536,142.94,142.9,5.62563784]
[1728472616438,74.83890536,142.94,142.89,10.79]
[1728472616639,3.56723219,142.93,142.9,5.62602145]
[1728472616942,3.56723219,142.93,142.88,1.3875]
[1728472617138,3.56723219,142.93,142.89,5.6262085]
[1728472617338,3.56723219,142.93,142.9,5.6262085]
[1728472617546,85.62890536,142.94,142.89,10.79]
[1728472617741,85.62890536,142.94,142.9,5.62604112]
[1728472617938,85.62890536,142.94,142.89,10.79]
[1728472618248,85.62890536,142.94,142.9,5.62609495]
[1728472618440,85.62890536,142.94,142.89,10.79]
[1728472618644,74.83890536,142.94,142.89,10.79]
[1728472618843,74.83890536,142.94,142.9,5.62596232]
[1728472619042,74.83890536,142.94,142.89,10.79]
[1728472619233,74.83890536,142.94,142.9,16.41590339]
[1728472619435,74.83890536,142.94,142.9,10.79]
[1728472621944,74.83890536,142.94,142.89,10.79]
[1728472622143,74.83890536,142.94,142.9,5.62659122]
[1728472622339,74.83890536,142.94,142.89,10.79]
[1728472622540,74.83890536,142.94,142.9,16.41650331]
[1728472622743,74.83890536,142.94,142.9,10.79]
[1728472623047,74.83890536,142.94,142.92,10.79]
[1728472623641,74.83890536,142.94,142.93,5.62358268]
[1728472623853,74.83890536,142.94,142.93,14.61907822]
[1728472624649,69.97890536,142.94,142.93,14.61907822]
[1728472625036,4.86,142.96,142.93,14.61907822]
[1728472625241,4.86,142.96,142.94,5.62358268]
[1728472625543,4.86,142.96,142.92,10.79]
[1728472625748,4.86,142.96,142.93,14.62435184]
[1728472626047,4.86,142.96,142.94,5.62475071]
[1728472626245,4.86,142.96,142.92,10.79]
[1728472626446,4.86,142.96,142.93,14.62659814]
[1728472626647,4.86,142.96,142.94,5.62561467]
[1728472626842,4.86,142.96,142.92,10.79]
[1728472627043,4.86,142.96,142.93,25.4184406]
[1728472627351,4.86,142.96,142.94,5.62632331]
[1728472627647,4.86,142.96,142.95,5.62632331]
[1728472629552,0.12502,142.97,142.95,5.62632331]
[1728472629738,4.98502,142.97,142.94,10.79]
[1728472629942,4.98502,142.97,142.95,5.62682267]
[1728472630140,4.98502,142.97,142.94,10.79]
[1728472630340,4.98502,142.97,142.95,5.62718213]
[1728472630551,4.98502,142.97,142.94,10.79]
[1728472630751,4.98502,142.97,142.95,5.62799047]
[1728472630950,4.98502,142.97,142.94,10.79]
[1728472631546,4.98502,142.97,142.95,5.62799047]
[1728472631742,4.98502,142.97,142.94,10.79]
[1728472631949,4.98502,142.97,142.95,5.62774365]
[1728472632148,4.98502,142.97,142.94,10.79]
[1728472632449,4.98502,142.97,142.95,5.62777513]
[1728472632748,4.98502,142.97,142.96,5.62777513]
[1728472634358,0.12502,142.97,142.9,1.3963]
[1728472634659,4.98502,142.97,142.96,5.62715378]
[1728472637151,4.98502,142.97,142.96,5.6118013]
[1728472644668,4.98502,142.97,142.93,10.79]
[1728472645160,4.98502,142.97,142.94,8.97721861]
[1728472645362,4.98502,142.97,142.95,5.61076163]
[1728472645668,4.98502,142.97,142.96,5.61076163]
[1728472646361,4.98502,142.97,142.93,10.79]
[1728472646563,4.98502,142.97,142.94,14.58602077]
[1728472646859,4.98502,142.97,142.95,5.61000799]
[1728472647067,4.98502,142.97,142.94,10.79]
[1728472647269,4.98502,142.97,142.95,5.61000072]
[1728472647467,4.98502,142.97,142.94,10.79]
[1728472647967,4.98502,142.97,142.95,5.60969543]
[1728472648166,4.98502,142.97,142.94,10.79]
[1728472648370,4.98502,142.97,142.95,5.6095605]
[1728472648566,4.98502,142.97,142.94,10.79]
[1728472648763,4.98502,142.97,142.95,5.60947929]
[1728472649068,4.98502,142.97,142.94,10.79]
[1728472649270,4.98502,142.97,142.95,5.60947929]
[1728472649567,4.98502,142.97,142.94,10.79]
[1728472649759,4.98502,142.97,142.95,5.6093006]
[1728472649960,4.98502,142.97,142.94,10.79]
[1728472650160,4.98502,142.97,142.95,5.6090206]
[1728472650360,4.98502,142.97,142.94,10.79]
[1728472650768,4.98502,142.97,142.95,5.60884947]
[1728472651068,4.98502,142.97,142.94,10.79]
[1728472651369,4.98502,142.97,142.95,5.60872277]
[1728472651561,4.98502,142.97,142.94,10.79]
[1728472651765,4.98502,142.97,142.95,5.60863754]
[1728472652058,4.98502,142.97,142.94,10.79]
[1728472652258,4.98502,142.97,142.95,5.60863754]
[1728472652573,4.98502,142.97,142.94,10.79]
[1728472652875,4.98502,142.97,142.95,5.6085088]
[1728472653073,4.98502,142.97,142.94,10.79]